Cogmind - Beta 12 @@@ ROGUE MODE // 2023.11.01 @ 16:46:23 Player: Figgis Result: Destroyed by D-53 Grenadier with Mini Grenade Launcher Performance ------------- Evolutions (0) 0 Regions Visited (4) 800 Robots Destroyed (10) 50 Value Destroyed (319) 319 Prototype IDs (23) 460 Alien Tech Used (0) 0 Bonus (339) 339 TOTAL SCORE: 1968 Bonus ------- Follower Combat Kills 39 Aligned with FarCom 300 Cogmind --------- Core Integrity 0/250 Matter 252/300 Energy 250/250 System Corruption 0% Temperature Cool (56) Movement Walking (190) Ox1 Location -9/Mines Parts ------- > --- POWER (1) -------- Ion Engine > --- PROPULSION (2) --- Aluminum Leg Aluminum Leg > --- UTILITY (2) ------ Large Storage Unit > --- WEAPON (2) ------- Rocket Launcher > --- INVENTORY (15) --- Ion Engine Aluminum Leg Aluminum Leg Potential Leg Potential Leg Improved Heat Sink Propulsion Shielding YOLO Cannon Assault Rifle Field Lobotomy Kit (5) Heavy Explosive Trap Heavy Explosive Trap Heavy Explosive Trap Heavy Explosive Trap Peak State ------------ > --- POWER ------------ Ion Engine > --- PROPULSION ------- Aluminum Leg Aluminum Leg > --- UTILITY ---------- Large Storage Unit > --- WEAPON ----------- Medium Laser Rocket Launcher > --- INVENTORY -------- Ion Engine Aluminum Leg Aluminum Leg Potential Leg Potential Leg Improved Heat Sink Propulsion Shielding YOLO Cannon Assault Rifle Field Lobotomy Kit Heavy Explosive Trap Heavy Explosive Trap Heavy Explosive Trap Heavy Explosive Trap [Rating: 13] Favorites ----------- Power Ion Engine Engine Ion Engine Propulsion Aluminum Leg Leg Aluminum Leg Utility Large Storage Unit Storage Large Storage Unit Weapon Medium Laser Energy Gun Medium Laser Ballistic Gun Assault Rifle Launcher Rocket Launcher Build | -11 -10 -10 -10 -9 ------- Run | Jun Mat Min Exi Min Slots Evolved . | . . . . . Power . | . . . . . Propulsion . | . . . . . Utility . | . . . . . Weapon . | . . . . . Parts Attached 13 | 3 5 3 1 1 Power 1 | . 1 . . . Engine 1 | . 1 . . . Core . | . . . . . Reactor . | . . . . . Propulsion 5 | 2 1 1 1 . Treads . | . . . . . Leg 5 | 2 1 1 1 . Wheel . | . . . . . Hover . | . . . . . Flight . | . . . . . Utility 2 | . 2 . . . Device . | . . . . . Storage 2 | . 2 . . . Processor . | . . . . . Hackware . | . . . . . Protection . | . . . . . Artifact . | . . . . . Weapon 5 | 1 1 2 . 1 Energy Gun 2 | . 1 1 . . Energy Cannon . | . . . . . Ballistic Gun 2 | 1 . 1 . . Ballistic Cannon . | . . . . . Launcher 1 | . . . . 1 Special Weapon . | . . . . . Impact Weapon . | . . . . . Slashing Weapon . | . . . . . Piercing Weapon . | . . . . . Special Melee Weapon . | . . . . . Unidentified Prototypes . | . . . . . Parts Lost 3 | . 1 1 . 1 Power . | . . . . . Propulsion 2 | . 1 1 . . Utility . | . . . . . Weapon 1 | . . . . 1 Highest Loss Streak 1 | . 1 1 . 1 To Critical Strikes . | . . . . . Average Slot Usage (%) 83 | . 81 84 85 85 Engine 13 | . 12 14 14 14 Leg 27 | . 27 27 28 28 Storage 13 | . 12 14 14 14 Energy Gun 13 | . 13 14 14 14 Ballistic Gun 13 | . 14 14 14 9 Naked Turns . | . . . . . Heaviest Build 29 | 1 27 29 29 29 Greatest Support 20 | 3 20 20 20 20 Greatest Overweight (x) 2 | . 1 2 1 1 Average Overweight (x) . | . . 1 1 1 Largest Inventory Capacity 15 | 5 15 15 15 15 Average Capacity 13 | 5 10 15 15 15 Most Carried 15 | 5 8 13 15 15 Average Carried 9 | 4 5 11 13 15 Final Capacity 15 | 5 15 15 15 15 Final Carried 15 | 5 7 13 15 15 Class Distribution -------------------- 100% | Mutant Dominant Class ---------------- Mutant | -10/Materials Mutant | -10/Mines Mutant | -10/Exiles Mutant | -9/Mines Resources | -11 -10 -10 -10 -9 ----------- Run | Jun Mat Min Exi Min Matter Collected 349 | 191 105 53 . . Remotely . | . . . . . Salvage Created 345 | . 214 131 . . Parts 19 | . 10 9 . . Haulers Intercepted . | . . . . . Recyclers Shooed . | . . . . . Parts Field Recycled . | . . . . . Retrieved Matter . | . . . . . Parts Self-Destructed . | . . . . . Prevented . | . . . . . Kills | -11 -10 -10 -10 -9 ------- Run | Jun Mat Min Exi Min Combat Hostiles Destroyed 9 | . 4 5 . . Guns 9 | . 4 5 . . Classes Destroyed 3 | . 2 1 . . Watcher 1 | . 1 . . . Swarmer 3 | . . 3 . . Grunt 6 | . 4 2 . . Best Kill Streak 4 | . 2 4 . . Combat Bots Only 4 | . 2 4 . . Max Kills in Single Turn 1 | . 1 1 . . Gunslinging . | . . . . . Exploded . | . . . . . Melee . | . . . . . Uniques/NPCs Destroyed . | . . . . . Combat | -11 -10 -10 -10 -9 -------- Run | Jun Mat Min Exi Min Damage Taken 811 | . 327 272 . 212 Core 259 | . 107 79 . 73 Absorbed by Shields . | . . . . . Core Remaining (%) 100 | 100 . . . . Volleys Fired 42 | . 21 18 . 3 Largest 2 | . 2 2 . 2 Hottest 83 | . 60 70 . 83 Shots Fired 84 | . 42 36 . 6 Gun 81 | . 42 36 . 3 Cannon . | . . . . . Launcher 3 | . . . . 3 Special . | . . . . . Kinetic 39 | . 21 18 . . Thermal 42 | . 21 18 . 3 Explosive 3 | . . . . 3 Electromagnetic . | . . . . . Robot Hit Streak 11 | . 6 11 . 11 Robot Miss Streak 3 | . 3 2 . 1 Penetration Max . | . . . . . Secondary Targets 1 | . 1 . . . Max Gunslinging Chain 1 | . 1 . . . Shots Hit Robots 57 | . 27 26 . 4 Core Hits 26 | . 15 9 . 2 Critical Kills . | . . . . . Critical Parts Destroyed . | . . . . . Critical Strikes . | . . . . . Melee Attacks . | . . . . . Impact . | . . . . . Slashing . | . . . . . Piercing . | . . . . . Sneak Attacks . | . . . . . Combat Hostiles . | . . . . . Follow-up Attacks . | . . . . . Damage Inflicted 565 | . 247 268 . 50 Guns 541 | . 247 268 . 26 Cannons . | . . . . . Explosions 24 | . . . . 24 Melee . | . . . . . Ramming . | . . . . . Kinetic 233 | . 118 115 . . Thermal 308 | . 129 153 . 26 Explosive 24 | . . . . 24 Electromagnetic . | . . . . . Impact . | . . . . . Slashing . | . . . . . Piercing . | . . . . . Highest Corruption . | . . . . . Average Corruption . | . . . . . Corruption Purged . | . . . . . Corruption Blocked . | . . . . . Overload Shots . | . . . . . Overflow Damage . | . . . . . Projectiles . | . . . . . Explosions . | . . . . . Melee . | . . . . . Knockbacks . | . . . . . Impact . | . . . . . Kinetic . | . . . . . Secondary . | . . . . . Self-Inflicted Damage 63 | . 63 . . . Shots 1 | . 1 . . . Rammed . | . . . . . Targets Rammed . | . . . . . Kicked . | . . . . . Crushed . | . . . . . Highest Temperature 206 | . 142 206 . 56 Average Temperature 63 | . 43 88 . 31 Received Heat Transfer 288 | . 144 144 . . Siege Activations . | . . . . . Robots Corrupted . | . . . . . Combat Hostiles . | . . . . . Parts Fried . | . . . . . Impact Corruptions . | . . . . . Robots Melted . | . . . . . Combat Hostiles . | . . . . . Parts Melted . | . . . . . Heat Transferred 759 | . 300 385 . 74 Parts Sabotaged . | . . . . . Parts Stolen . | . . . . . Parts Stripped . | . . . . . Power Chain Reactions . | . . . . . Missiles Intercepted . | . . . . . Alert | -11 -10 -10 -10 -9 ------- Run | Jun Mat Min Exi Min Peak Influence 208 | . 208 173 . 11 Initial 3 | . . 3 . . Average 28 | . 51 16 . 2 Maximum Alert Level 1 | . 1 . . . Low Security (%) 98 | 100 96 100 . 100 Level 1 1 | . 3 . . . Level 2 . | . . . . . Level 3 . | . . . . . Level 4 . | . . . . . Level 5 . | . . . . . High Security . | . . . . . Max Security . | . . . . . Squads Dispatched . | . . . . . Investigation . | . . . . . Extermination . | . . . . . Reinforcement . | . . . . . Assault . | . . . . . Garrison . | . . . . . Intercept . | . . . . . Searches Triggered . | . . . . . Construction Impeded . | . . . . . Haulers Reinforced . | . . . . . Active Scanning Responses . | . . . . . Cargo Convoy Interrupts . | . . . . . Stealth | -11 -10 -10 -10 -9 --------- Run | Jun Mat Min Exi Min Distress Signals . | . . . . . Communications Jammed . | . . . . . Distress Signals . | . . . . . Times Spotted 18 | . 10 5 . 3 Peak Tracking Total 3 | . 3 3 . 2 Tactical Retreats 2 | . . 2 . . Traps | -11 -10 -10 -10 -9 ------- Run | Jun Mat Min Exi Min Traps Triggered . | . . . . . Indirectly . | . . . . . Trap Hack Attempts . | . . . . . Triggered . | . . . . . Disarmed . | . . . . . Reprogrammed . | . . . . . Reused . | . . . . . Traps Extracted . | . . . . . Installed . | . . . . . Triggered . | . . . . . Most Traps Carried 4 | . . 4 4 4 Machines | -11 -10 -10 -10 -9 ---------- Run | Jun Mat Min Exi Min Machines Disabled 3 | . 3 . . . Max in Single Turn 3 | . 3 . . . Machines Repaired . | . . . . . Machines Sabotaged . | . . . . . Overloaded Fab Kills . | . . . . . Hacking | -11 -10 -10 -10 -9 --------- Run | Jun Mat Min Exi Min Machines Accessed 6 | . 4 . 2 . Terminals 4 | . 4 . . . Fabricators . | . . . . . Repair Stations . | . . . . . Recycling Units . | . . . . . Scanalyzers . | . . . . . Garrison Access . | . . . . . Total Hacks 11 | . 9 . 2 . Successful 5 | . 3 . 2 . Failed 6 | . 6 . . . Catastrophic . | . . . . . Database Lockouts . | . . . . . Manual 3 | . 2 . 1 . Terminals 9 | . 9 . . . Fabricators . | . . . . . Repair Stations . | . . . . . Recycling Units . | . . . . . Scanalyzers . | . . . . . Garrison Access . | . . . . . Terminal Hacks 5 | . 3 . 2 . Record 1 | . . . 1 . Robot Analysis 1 | . 1 . . . Locate Traps 2 | . 2 . . . EX-Prototype ID Bank 1 | . . . 1 . Fabricator Hacks . | . . . . . Repair Station Hacks . | . . . . . Recycling Unit Hacks . | . . . . . Scanalyzer . | . . . . . Garrison Access Hacks . | . . . . . Unauthorized Hacks . | . . . . . Terminals . | . . . . . Fabricators . | . . . . . Repair Stations . | . . . . . Recycling Units . | . . . . . Scanalyzers . | . . . . . Garrison Access . | . . . . . Data Cores Recovered . | . . . . . Used . | . . . . . Hacking Detections 4 | . 4 . . . Full Trace Events . | . . . . . Feedback Events . | . . . . . Feedback Blocked . | . . . . . Robot Schematics Acquired . | . . . . . Robots Built . | . . . . . Authchips . | . . . . . Time . | . . . . . Total Robot Build Rating . | . . . . . Part Schematics Acquired . | . . . . . Parts Built . | . . . . . Authchips . | . . . . . Time . | . . . . . Total Part Build Rating . | . . . . . Parts Repaired . | . . . . . Time . | . . . . . Parts Recycled . | . . . . . Recycled Matter . | . . . . . Retrieved Matter . | . . . . . Retrieved Components . | . . . . . Parts Scanalyzed . | . . . . . Part Schematics Acquired . | . . . . . Parts Damaged . | . . . . . Bothacking | -11 -10 -10 -10 -9 ------------ Run | Jun Mat Min Exi Min Used RIF Installer . | . . . . . Robots Hacked . | . . . . . Non-combat . | . . . . . Combat . | . . . . . Robot Hacks Applied . | . . . . . Relay Couplers Released . | . . . . . Fabnet Peak Effective % . | . . . . . Robots Rewired . | . . . . . Allies Hacked . | . . . . . Hacks Repelled . | . . . . . Allies | -11 -10 -10 -10 -9 -------- Run | Jun Mat Min Exi Min Total Allies 3 | . . . . 3 Largest Group . | . . . . . Highest-Rated Group . | . . . . . Highest-Rated Ally . | . . . . . Total Orders . | . . . . . Ally Attacks 3 | . . . . 3 Total Damage 43 | . . . . 43 Kills 1 | . . . . 1 Allies Corrupted . | . . . . . Allies Melted . | . . . . . Intel | -11 -10 -10 -10 -9 ------- Run | Jun Mat Min Exi Min Robot Analysis Total 1 | . 1 . . . Derelict Logs Recovered 1 | . . 1 . . Drone Launches . | . . . . . Drone Recoveries . | . . . . . Exploration | -11 -10 -10 -10 -9 ------------- Run | Jun Mat Min Exi Min Turns Passed 2525 | 31 748 1309 410 27 Spaces Moved 1418 | 40 501 655 213 9 Core 132 | 40 92 . . . Treads . | . . . . . Legs 1286 | . 409 655 213 9 Wheels . | . . . . . Hover . | . . . . . Flight . | . . . . . Fastest Speed 50 | 50 50 190 190 190 Average Speed 165 | 50 132 190 190 190 Slowest Speed 260 | 50 190 260 190 190 Overloaded Moves . | . . . . . Propulsion Burnouts . | . . . . . Robots Hopped . | . . . . . Cave-ins Triggered . | . . . . . Exploration Rate (%) 49 | 3 75 100 59 9 Regions Visited 4 Branch Regions 3 Pre-discovered Areas 1 | . . . 1 . Known Exits Taken . | . . . . . Unknown Exits Taken 4 | 1 1 1 1 . Scrap Searched 1 | . . 1 . . Spaces Dug . | . . . . . Terrain Destroyed 28 | . 6 . . 22 Melee . | . . . . . Projectile . | . . . . . AOE 28 | . 6 . . 22 Terrain Rammed . | . . . . . Walls Destroyed . | . . . . . Machines Disabled . | . . . . . Actions | -11 -10 -10 -10 -9 --------- Run | Jun Mat Min Exi Min Total 1515 | 50 549 683 220 13 Wait 16 | . 15 1 . . Move 1414 | 39 500 654 212 9 Hop . | . . . . . Pick Up 26 | 8 7 7 4 . Fast Attach . | . . . . . Attach 9 | 3 5 1 . . Detach . | . . . . . Swap 4 | . . 2 1 1 Drop 4 | . 1 . 3 . Fire 42 | . 21 18 . 3 Melee . | . . . . . Ram . | . . . . . Kick . | . . . . . Crush . | . . . . . Escape Stasis . | . . . . . Rewire . | . . . . . Trap . | . . . . . Miscellaneous . | . . . . . Route ------- -11/Junkyard -10/Materials (discovered 4 exits: [*Mat x3] / [*Min]) -10/Mines (discovered 3 exits: [*Mat x2] / *Exi) -10/Exiles -9/Mines History --------- Turn | Location | Event 7 | -11/Junkyard | Discovered new exit (range 16) 32 | -11/Junkyard | Entered Materials 130 | -10/Materials | Discovered new exit (range 4) 311 | -10/Materials | Build established: Mutant 352 | -10/Materials | Discovered new exit (range 5) 571 | -10/Materials | Discovered new exit (range 6) 723 | -10/Materials | Discovered new exit (range 12) 780 | -10/Materials | Entered Mines 962 | -10/Mines | Received a Rocket Launcher from a helpful Derelict 1011 | -10/Mines | Core integrity fell below 50% 1095 | -10/Mines | Learned Materials terminal intel 1263 | -10/Mines | Found a hidden stash of uninstalled traps 1635 | -10/Mines | Discovered new exit (range 15) 1818 | -10/Mines | Discovered new exit (range 3) 1894 | -10/Mines | Deemed a non-threat by the Exiles lab entrance 2080 | -10/Mines | Discovered new exit (range 5) 2089 | -10/Mines | Entered Exiles 2137 | -10/Exiles | Met 8R-AWN 2169 | -10/Exiles | Met EX-HEX 2221 | -10/Exiles | Met EX-BIN 2241 | -10/Exiles | Aligned with FarCom system 2243 | -10/Exiles | Given EX-Vault access code 2287 | -10/Exiles | Opened EX-Vault 2302 | -10/Exiles | Found Field Lobotomy Kit 2310 | -10/Exiles | Found YOLO Cannon 2313 | -10/Exiles | Found Potential Leg 2318 | -10/Exiles | Found Potential Leg 2359 | -10/Exiles | Warned to stay clear of 0b10 Research branches 2416 | -10/Exiles | Met EX-DEC 2423 | -10/Exiles | Learned location of Zion (-6) 2482 | -10/Exiles | Discovered new exit (range 11) 2499 | -10/Exiles | Stole three prototypes: Potential Leg, YOLO Cannon, Field Lobotomy Kit 2499 | -10/Exiles | Entered Mines 2500 | -9/Mines | Assembled infested the area 2505 | -9/Mines | Assisted by a Guerilla fighting off Assembled 2515 | -9/Mines | Assisted by bots powering up and referring to "LRC-V3" 2518 | -9/Mines | Core integrity fell below 20% 2526 | -9/Mines | Destroyed by D-53 Grenadier with Mini Grenade Launcher Last Messages --------------- 02515_ Trooper 2b: "Hello LRC-V3. What is your command?" 02517_ C-30 ARC bursts open, deploying its payload. 02517_ D-53 Grenadier unfolds itself. 02517_ D-53 Grenadier destroyed. 02517_ Mercenary 2a destroyed. 02517_ Trooper 2b destroyed. 02517_ Trooper 2a destroyed. 02519_ The unstable cave ceiling collapses. 02519_ HV Slug penetrates G-34 Mercenary. 02519_ G-34 Mercenary suffers critical hit (Destroy). 02519_ G-34 Mercenary knocked back. 02519_ HV Slug penetrates G-34 Mercenary. 02521_ G-34 Mercenary suffers critical hit (Destroy). 02521_ G-34 Mercenary knocked back. 02521_ HV Slug penetrates G-34 Mercenary. 02523_ The unstable cave ceiling collapses. 02524_ Med. Laser destroyed. 02525_ T-07 Excavator is excavating. 02525_ HV Slug penetrates Wall. 02525_ U-05 Engineer builds a Wall. Map ----- +----------------------------------------------------+ | ?????????????????????????????????????????? | | ?????????????????????????????????????????? | | ?????????????????????????????????????????? | | ?????????????????????????????????????????? | | ?????????????????????????????????????????? | | ?????????????????????????????????????????? | | ?????????????????????????????????????????? | | ?????????????????????????????????????????? | | ?????????????????????????????????????????? | | ?????????????????????????????????????????? | | ?????????????????????????????????????????? | | ?????????????????????????????????????????? | | ?????????????????????????????????????????? | | ???????????????????????????g?????????????? | | ????????????????????????????####?????????? | | ???????????????????????????? #?????????? | | ????????????????????????????# #?????????? | | ????????????????????????????# #####?????? | | ????????????????????????????# # ###???? | | ???????????????????????????## % ##??? | | ????????????????????????#### g #??? | | ????????????????????##### # % #??? | | ????????????????????# ##??? | | ????????????????????# #???? | | ????????????????????# #???? | | ????????????????????# @ #???? | | ????????????????????# ##???? | | ????????????????????## #????? | | ????????????????????# ##????? | | ????????????????????## ;###?????? | | ?????????????????????### d ###???????? | | ???????????????????????## % ????????? | | ????????????????????????# #???????? | | ???????????????????s???? #???????? | | ????????????????????????## #???????? | | ???????????????????s?s???#u # # #???????? | | ????????????????????????? u t #???????? | | ?????????????????????????? ?#???????? | | ??????????????????????????#######????????? | | ?????????????????????????????????????????? | | ?????????????????????????????????????????? | | ?????????????????????????????????????????? | | ?????????????????????????????????????????? | | ?????????????????????????????????????????? | | | | | | | | | | | | | +----------------------------------------------------+ Best States ------------- Heat Dissipation 25 Energy Generation 10 Energy Capacity 250 Matter Stores 300 Matter Capacity 300 Sight Range 16 Terrain Scan Density 10 Evasion (%) 55 Item Schematics ----------------- None Robot Schematics ------------------ None Fabricated ------------ Nothing Alien Tech Used ----------------- None Achievements -------------- None Challenges ------------ None Game ------ Seed WaveBackupInverter Manual? 0 Play Time 00:09:00 Cumulative 93.6 hours Start 2023.11.01 @ 16:37:24 End 2023.11.01 @ 16:46:23 Sessions 1 Manual Loads 0 Difficulty Rogue Special Mode None Game No. 158 Rogue 155 Adventurer 3 Explorer 0 Win Type - Total 0 Types 0/0/0/0/0/0/0/0/0 Lore% 42 Gallery% 54 Achievement% 39 Wizard Run 0 Options --------- ASCII 0 Keyboard 0 Movement Mouse Keybinds 0 Fullscreen 2 Font 18/SmallcapsGlow Map View 76x50 Tactical HUD 1 Map Filters NONE Filters NONE Steam 1 RUN: f533eb1a-a421-4a4a-bbc9-092a5347ad5b